Cogmind - Beta 13 @@@ ROGUE MODE // 2024.03.09 @ 16:29:30 Player: kaj Result: Destroyed by OR-ZW1(z) with Makeshift Spear Performance ------------- Evolutions (3) 1500 Regions Visited (9) 1800 Robots Destroyed (74) 370 Value Destroyed (2435) 2435 Prototype IDs (2) 40 Alien Tech Used (0) 0 Bonus (144) 144 TOTAL SCORE: 6289 Bonus ------- High Alert Combat Kills 56 Follower Combat Kills 226 Friendly Fire -138 Cogmind --------- Core Integrity 0/700 Matter 228/300 Energy 198/265 System Corruption 7% Temperature Cool (0) Movement Core (1650) Ox32 Location -7/Zion Parts ------- > --- POWER (1) -------- Reinforced Ion Engine > --- PROPULSION (4) --- Armored Huge Wheel > --- UTILITY (5) ------ Huge Storage Unit Improved Signal Interpreter > --- WEAPON (3) ------- RU-N14's Throwing Claymores > --- INVENTORY (25) --- Reinforced Ion Engine Armored Huge Wheel Armored Huge Wheel High-capacity Storage Unit Large Matter Pod (150) Advanced Visual Processing Unit Improved Sensor Array Targeting Computer Matter Filter Hacking Suite Long-range Tractor Beam Sensor Drone Bay (17/20) Heavy Riot Gun Flak Gun Advanced Assault Cannon Heavy Rocket Launcher RU-N14's Throwing Claymores (2) RU-N14's Throwing Claymores (2) Peak State ------------ > --- POWER ------------ Light Nuclear Core > --- PROPULSION ------- Improved Treads Armored Treads Armored Huge Wheel > --- UTILITY ---------- Huge Storage Unit Improved Signal Interpreter Targeting Computer Improved Targeting Computer Kinecellerator > --- WEAPON ----------- Flak Gun Flak Gun RU-N14's Throwing Claymores > --- INVENTORY -------- Reinforced Ion Engine Reinforced Ion Engine Armored Huge Wheel Armored Huge Wheel Armored Huge Wheel High-capacity Storage Unit Large Matter Pod Advanced Visual Processing Unit Improved Sensor Array Targeting Computer Matter Filter Hacking Suite Long-range Tractor Beam Sensor Drone Bay Heavy Riot Gun High-powered Shotgun Advanced Assault Cannon Heavy Rocket Launcher RU-N14's Throwing Claymores RU-N14's Throwing Claymores RU-N14's Throwing Claymores Phasing Sabre [Rating: 51] Favorites ----------- Power Reinforced Ion Engine Engine Reinforced Ion Engine Power Core Light Nuclear Core Propulsion Armored Huge Wheel Treads Armored Treads Leg Aluminum Leg Wheel Armored Huge Wheel Utility Improved Targeting Computer Device Kinecellerator Storage Huge Storage Unit Processor Improved Targeting Computer Hackware Hacking Suite Protection Light Armor Plating Weapon Gauss Rifle Energy Gun Medium Laser Ballistic Gun Gauss Rifle Ballistic Cannon Flak Cannon Launcher Heavy Rocket Launcher Special Weapon RU-N14's Throwing Claymores Slashing Weapon Phasing Sabre Build | -11 -10 -10 -9 -9 -8 -7 -7 -7 -7 ------- Run | Yrd Mat Min Mat Min Mat Fac Low Low Zio Slots Evolved 6 | . . . 2 . 2 2 . . . Power . | . . . . . . . . . . Propulsion 2 | . . . 1 . 1 . . . . Utility 3 | . . . 1 . 1 1 . . . Weapon 1 | . . . . . . 1 . . . Parts Attached 82 | . 8 1 4 1 23 16 6 14 9 Power 5 | . 2 . . . 1 . . 1 1 Engine 4 | . 2 . . . 1 . . . 1 Core 1 | . . . . . . . . 1 . Reactor . | . . . . . . . . . . Propulsion 22 | . 3 . 1 . 11 3 . 3 1 Treads 10 | . 1 . 1 . 4 1 . 3 . Leg . | . . . . . . . . . . Wheel 12 | . 2 . . . 7 2 . . 1 Hover . | . . . . . . . . . . Flight . | . . . . . . . . . . Utility 26 | . 2 . 2 . 5 10 2 5 . Device 14 | . . . 1 . 1 8 1 3 . Storage 2 | . 1 . . . 1 . . . . Processor 4 | . 1 . . . 2 1 . . . Hackware 1 | . . . . . . 1 . . . Protection 5 | . . . 1 . 1 . 1 2 . Artifact . | . . . . . . . . . . Weapon 29 | . 1 1 1 1 6 3 4 5 7 Energy Gun . | . . . . . . . . . . Energy Cannon . | . . . . . . . . . . Ballistic Gun 19 | . 1 1 1 1 5 3 3 1 3 Ballistic Cannon 4 | . . . . . . . . 4 . Launcher 2 | . . . . . 1 . 1 . . Special Weapon 3 | . . . . . . . . . 3 Impact Weapon . | . . . . . . . . . . Slashing Weapon 1 | . . . . . . . . . 1 Piercing Weapon . | . . . . . . . . . . Special Melee Weapon . | . . . . . . . . . . Unidentified Prototypes 2 | . . . . . . 1 . . 1 Parts Lost 21 | . . . . . 7 2 . 3 9 Power 1 | . . . . . . . . . 1 Propulsion 7 | . . . . . 4 . . 1 2 Utility 7 | . . . . . 1 2 . 1 3 Weapon 6 | . . . . . 2 . . 1 3 Highest Loss Streak 9 | . . . . . 6 1 . 3 9 To Critical Strikes 1 | . . . . . . . . . 1 Average Slot Usage (%) 93 | . 99 100 99 100 90 91 92 87 90 Engine 7 | . 14 14 11 11 9 7 7 3 . Core 1 | . . . . . . . . 3 6 Treads 12 | . 5 14 22 22 14 7 7 10 14 Leg 1 | . 17 . . . . . . . . Wheel 10 | . 5 14 11 11 12 15 15 7 7 Device 2 | . . . . . . 6 . 3 6 Storage 9 | . 14 14 11 11 9 7 7 7 7 Processor 19 | . 13 14 11 11 22 22 23 23 22 Protection 2 | . . . 10 11 4 . 6 3 . Ballistic Gun 20 | . 24 28 22 22 17 23 22 14 15 Ballistic Cannon 2 | . . . . . . . . 8 4 Naked Turns . | . . . . . . . . . . Heaviest Build 125 | 11 52 54 57 59 98 116 125 121 106 Greatest Support 56 | 20 20 10 10 10 56 40 40 40 28 Greatest Overweight (x) 35 | . 5 5 5 5 5 2 3 4 35 Average Overweight (x) 3 | . 2 5 5 5 2 2 2 3 3 Largest Inventory Capacity 25 | 8 20 20 20 20 25 25 25 25 25 Average Capacity 22 | 8 16 20 20 20 21 25 25 25 25 Most Carried 25 | 6 16 20 20 20 25 25 25 25 25 Average Carried 20 | 6 10 18 19 19 20 23 24 22 23 Final Capacity 25 | 8 20 20 20 20 25 25 25 25 25 Final Carried 25 | 6 16 20 20 20 25 25 25 21 20 Class Distribution -------------------- 50% | Mutant 49% | Gunner Dominant Class ---------------- Mutant | -10/Materials Mutant | -10/Mines Mutant | -9/Materials Mutant | -9/Mines Mutant | -8/Materials Gunner | -7/Factory Gunner | -7/Lower Caves Gunner | -7/Lower Caves Gunner | -7/Zion Resources | -11 -10 -10 -9 -9 -8 -7 -7 -7 -7 ----------- Run | Yrd Mat Min Mat Min Mat Fac Low Low Zio Matter Collected 2354 | 200 244 155 75 69 273 627 126 559 26 Remotely 397 | . . . . . 78 251 . 68 . Salvage Created 2571 | . 208 196 82 47 585 718 131 534 70 Parts 155 | . 11 13 7 4 36 46 12 18 8 Haulers Intercepted 1 | . 1 . . . . . . . . Recyclers Shooed . | . . . . . . . . . . Parts Field Recycled . | . . . . . . . . . . Retrieved Matter . | . . . . . . . . . . Parts Self-Destructed 31 | . . . . . . . 9 19 3 Prevented . | . . . . . . . . . . Kills | -11 -10 -10 -9 -9 -8 -7 -7 -7 -7 ------- Run | Yrd Mat Min Mat Min Mat Fac Low Low Zio Combat Hostiles Destroyed 62 | . 4 4 3 3 14 14 5 15 . Guns 50 | . 4 4 3 3 10 14 4 8 . Cannons 7 | . . . . . . . . 7 . AOE 5 | . . . . . 4 . 1 . . Classes Destroyed 12 | . 3 1 2 . 1 3 1 . 1 Worker 1 | . . 1 . . . . . . . Builder 2 | . . . . . . 2 . . . Hauler 1 | . 1 . . . . . . . . Drone 1 | . . . . . . 1 . . . Watcher 4 | . 1 . . . 1 2 . . . Swarmer 21 | . . . 2 3 4 5 3 4 . Grunt 27 | . 4 4 . . 6 6 . 7 . Brawler 2 | . . . . . . 1 . 1 . Duelist 4 | . . . . . 1 1 . 2 . Sentry 7 | . . . 1 . 3 1 1 1 . Zionite 4 | . . . . . . . . . 4 Thief 1 | . . . . . . . 1 . . Best Kill Streak 7 | . 2 3 2 3 6 5 3 7 2 Combat Bots Only 7 | . 2 2 2 3 6 4 3 7 . Max Kills in Single Turn 2 | . 1 1 2 1 2 2 1 2 2 Gunslinging . | . . . . . . . . . . Exploded 2 | . . . . . 2 . 1 . . Melee . | . . . . . . . . . . Uniques/NPCs Destroyed . | . . . . . . . . . . Combat | -11 -10 -10 -9 -9 -8 -7 -7 -7 -7 -------- Run | Yrd Mat Min Mat Min Mat Fac Low Low Zio Hostile Shots Fired 480 | . 48 18 16 20 93 75 44 97 69 Missed 113 | . 11 3 4 5 18 22 15 16 19 Damage Taken 5710 | . 404 197 122 136 992 789 328 1333 1409 Core 981 | . 86 54 32 . 93 113 60 146 397 Absorbed by Shields . | . . . . . . . . . . Ignored by Resistances 197 | . . . . . . . 53 144 . Regen/Repaired (Parts) 252 | . . . . . . . . . 252 Core Remaining (%) 79 | 100 . 44 . 92 83 . . . . Volleys Fired 193 | . 41 19 7 9 37 32 10 37 1 Largest 3 | . 2 2 2 2 2 3 3 3 2 Hottest 136 | . 70 45 45 48 56 84 81 136 . Shots Fired 417 | . 82 37 14 18 66 95 25 78 2 Gun 379 | . 82 37 14 18 63 95 24 46 . Cannon 32 | . . . . . . . . 32 . Launcher 4 | . . . . . 3 . 1 . . Special 2 | . . . . . . . . . 2 Kinetic 399 | . 70 37 14 18 63 95 24 78 . Thermal 12 | . 12 . . . . . . . . Explosive 6 | . . . . . 3 . 1 . 2 Electromagnetic . | . . . . . . . . . . Robot Hit Streak 13 | . 9 10 5 3 12 13 5 13 2 Robot Miss Streak 5 | . 3 1 3 3 2 2 3 5 . Penetration Max 1 | . . . . . 1 1 . . . Secondary Targets 8 | . . 1 . 1 1 4 . 1 . Max Gunslinging Chain 1 | . . 1 . 1 1 1 . 1 . Shots Hit Robots 286 | . 53 31 8 10 45 58 14 57 10 Core Hits 155 | . 13 13 6 4 26 35 6 47 5 Critical Kills 2 | . . . 1 . 1 . . . . Critical Parts Destroyed . | . . . . . . . . . . Critical Strikes 3 | . . . 1 . 1 . . . 1 Destroy 2 | . . . 1 . 1 . . . . Sever 1 | . . . . . . . . . 1 Melee Attacks 78 | . . . . . . . . . 78 Impact . | . . . . . . . . . . Slashing 78 | . . . . . . . . . 78 Piercing . | . . . . . . . . . . Sneak Attacks . | . . . . . . . . . . Combat Hostiles . | . . . . . . . . . . Follow-up Attacks . | . . . . . . . . . . Damage Inflicted 5570 | . 458 311 109 162 1049 1244 414 1132 691 Guns 3929 | . 458 311 109 162 800 1244 282 563 . Cannons 569 | . . . . . . . . 569 . Explosions 678 | . . . . . 236 . 132 . 310 Melee 347 | . . . . . . . . . 347 Ramming 14 | . . . . . 13 . . . 1 Kinetic 4410 | . 370 311 109 162 800 1244 282 1132 . Thermal 88 | . 88 . . . . . . . . Explosive 678 | . . . . . 236 . 132 . 310 Electromagnetic . | . . . . . . . . . . Impact . | . . . . . . . . . . Slashing 380 | . . . . . . . . . 380 Piercing . | . . . . . . . . . . Highest Corruption 7 | . 1 1 . . . 3 3 3 7 Average Corruption 2 | . 1 1 . . . 3 3 3 4 Corruption Purged . | . . . . . . . . . . Corruption Blocked . | . . . . . . . . . . Effects 55 | . 5 6 . . . 8 12 20 4 Message Errors 11 | . 1 . . . . 2 4 3 1 Matter Fused 15 | . 1 3 . . . 3 3 5 . Heat Flow Errors 8 | . 1 . . . . 1 1 4 1 Energy Discharges 6 | . 1 . . . . 2 1 1 1 Parts Rejected 1 | . . . . . . . . 1 . Parts Fused 1 | . . . . . . . . 1 . Data Loss (minor) 10 | . 1 2 . . . . 2 4 1 Data Loss (major) 1 | . . . . . . . 1 . . Weapon Failures 2 | . . 1 . . . . . 1 . Overload Shots . | . . . . . . . . . . Overflow Damage 18 | . . . . . 14 . . . 4 Projectiles . | . . . . . . . . . . Explosions 18 | . . . . . 14 . . . 4 Melee . | . . . . . . . . . . Knockbacks 11 | . . . . . . . . 11 . Impact . | . . . . . . . . . . Kinetic 11 | . . . . . . . . 11 . Secondary . | . . . . . . . . . . Self-Inflicted Damage 130 | . . . . . 67 . 63 . . Shots 3 | . . . . . 2 . 1 . . Rammed 2 | . . . . . 1 . . . 1 Targets Rammed 2 | . . . . . 1 . . . 1 Kicked . | . . . . . . . . . . Crushed . | . . . . . . . . . . Highest Temperature 349 | . 214 78 12 33 27 266 241 349 181 Average Temperature 72 | . 67 33 9 13 8 73 82 119 93 Received Heat Transfer 1416 | . 222 114 21 18 360 177 36 468 . Effects 1 | . . . . . . . . 1 . Short Circuit 1 | . . . . . . . . 1 . Siege Activations . | . . . . . . . . . . Robots Corrupted . | . . . . . . . . . . Combat Hostiles . | . . . . . . . . . . Parts Fried 1 | . . . . . . . . 1 . Impact Corruptions . | . . . . . . . . . . Robots Melted . | . . . . . . . . . . Combat Hostiles . | . . . . . . . . . . Parts Melted . | . . . . . . . . . . Heat Transferred 259 | . 259 . . . . . . . . Parts Sabotaged . | . . . . . . . . . . Parts Stolen 1 | . . . . . . . 1 . . Parts Stripped . | . . . . . . . . . . Power Chain Reactions . | . . . . . . . . . . Alert | -11 -10 -10 -9 -9 -8 -7 -7 -7 -7 ------- Run | Yrd Mat Min Mat Min Mat Fac Low Low Zio Peak Influence 469 | . 95 73 276 247 450 469 . . . Initial 144 | . . 23 . 107 57 144 . . . Average 146 | . 47 44 114 165 235 281 . . . Maximum Alert Level 2 | . . . 1 1 2 2 . . . Low Security (%) 67 | 100 100 100 69 68 36 23 . . . Level 1 29 | . . . 30 31 55 68 . . . Level 2 2 | . . . . . 7 7 . . . Level 3 . | . . . . . . . . . . Level 4 . | . . . . . . . . . . Level 5 . | . . . . . . . . . . High Security . | . . . . . . . . . . Max Security . | . . . . . . . . . . Squads Dispatched 9 | . 1 1 4 . . 2 . 1 . Investigation 5 | . 1 1 1 . . 2 . . . Extermination . | . . . . . . . . . . Reinforcement 3 | . . . 3 . . . . . . Assault 1 | . . . . . . . . 1 . Garrison . | . . . . . . . . . . Intercept . | . . . . . . . . . . Searches Triggered . | . . . . . . . . . . Construction Impeded . | . . . . . . . . . . Haulers Reinforced . | . . . . . . . . . . Active Scanning Responses . | . . . . . . . . . . Cargo Convoy Interrupts . | . . . . . . . . . . Stealth | -11 -10 -10 -9 -9 -8 -7 -7 -7 -7 --------- Run | Yrd Mat Min Mat Min Mat Fac Low Low Zio Distress Signals . | . . . . . . . . . . Communications Jammed . | . . . . . . . . . . Distress Signals . | . . . . . . . . . . Times Spotted 111 | . 8 5 13 9 22 18 8 20 8 Peak Tracking Total 8 | . 3 2 3 4 8 5 4 8 5 Tactical Retreats 3 | . . . . . 2 . 1 . . Traps | -11 -10 -10 -9 -9 -8 -7 -7 -7 -7 ------- Run | Yrd Mat Min Mat Min Mat Fac Low Low Zio Traps Triggered 5 | . 1 . 1 . . 3 . . . Indirectly . | . . . . . . . . . . Trap Hack Attempts . | . . . . . . . . . . Triggered . | . . . . . . . . . . Disarmed . | . . . . . . . . . . Reprogrammed . | . . . . . . . . . . Reused . | . . . . . . . . . . Traps Extracted . | . . . . . . . . . . Installed . | . . . . . . . . . . Triggered 4 | . . . . . . . . 4 . Machines | -11 -10 -10 -9 -9 -8 -7 -7 -7 -7 ---------- Run | Yrd Mat Min Mat Min Mat Fac Low Low Zio Machines Disabled 3 | . . . . . 1 1 . . 1 Max in Single Turn 1 | . . . . . 1 1 . . 1 Machines Repaired . | . . . . . . . . . . Machines Dismantled . | . . . . . . . . . . Machines Sabotaged . | . . . . . . . . . . Overloaded Fab Kills . | . . . . . . . . . . Hacking | -11 -10 -10 -9 -9 -8 -7 -7 -7 -7 --------- Run | Yrd Mat Min Mat Min Mat Fac Low Low Zio Machines Accessed 14 | . 2 2 4 1 3 2 . . . Terminals 10 | . 2 1 4 . 3 . . . . Fabricators 1 | . . . . . . 1 . . . Repair Stations . | . . . . . . . . . . Recycling Units . | . . . . . . . . . . Scanalyzers 1 | . . . . . . 1 . . . Garrison Access . | . . . . . . . . . . Total Hacks 34 | . 6 3 9 1 10 5 . . . Successful 9 | . 2 1 3 1 1 1 . . . Failed 25 | . 4 2 6 . 9 4 . . . Catastrophic 4 | . 2 1 . . 1 . . . . Database Lockouts . | . . . . . . . . . . Manual 29 | . 6 2 9 . 10 1 . . 1 Terminals 27 | . 6 2 9 . 10 . . . . Fabricators 1 | . . . . . . 1 . . . Repair Stations . | . . . . . . . . . . Recycling Units . | . . . . . . . . . . Scanalyzers 4 | . . . . . . 4 . . . Garrison Access . | . . . . . . . . . . Terminal Hacks 7 | . 1 1 3 1 1 . . . . Robot Analysis 4 | . 1 . 2 . 1 . . . . Open Door 2 | . . 1 . 1 . . . . . Zone Layout 1 | . . . 1 . . . . . . Fabricator Hacks . | . . . . . . . . . . Repair Station Hacks . | . . . . . . . . . . Recycling Unit Hacks . | . . . . . . . . . . Scanalyzer 1 | . . . . . . 1 . . . Insert Component 1 | . . . . . . 1 . . . Garrison Access Hacks . | . . . . . . . . . . Unauthorized Hacks 1 | . 1 . . . . . . . . Terminals 1 | . 1 . . . . . . . . Botnet 1 | . 1 . . . . . . . . Fabricators . | . . . . . . . . . . Repair Stations . | . . . . . . . . . . Recycling Units . | . . . . . . . . . . Scanalyzers . | . . . . . . . . . . Garrison Access . | . . . . . . . . . . Data Cores Recovered . | . . . . . . . . . . Used . | . . . . . . . . . . Hacking Detections 11 | . 2 1 3 . 3 2 . . . Full Trace Events 4 | . 1 1 . . 1 1 . . . Feedback Events 2 | . 1 . . . . 1 . . . Corruption 1 | . 1 . . . . . . . . Hackware Fried 1 | . . . . . . 1 . . . Feedback Blocked . | . . . . . . . . . . Robot Schematics Acquired . | . . . . . . . . . . Robots Built . | . . . . . . . . . . Authchips . | . . . . . . . . . . Time . | . . . . . . . . . . Total Robot Build Rating . | . . . . . . . . . . Part Schematics Acquired . | . . . . . . . . . . Parts Built . | . . . . . . . . . . Authchips . | . . . . . . . . . . Time . | . . . . . . . . . . Total Part Build Rating . | . . . . . . . . . . Parts Repaired . | . . . . . . . . . . Time . | . . . . . . . . . . Parts Recycled . | . . . . . . . . . . Recycled Matter . | . . . . . . . . . . Retrieved Matter . | . . . . . . . . . . Retrieved Components . | . . . . . . . . . . Parts Scanalyzed 1 | . . . . . . 1 . . . Part Schematics Acquired . | . . . . . . . . . . Parts Damaged 1 | . . . . . . 1 . . . Bothacking | -11 -10 -10 -9 -9 -8 -7 -7 -7 -7 ------------ Run | Yrd Mat Min Mat Min Mat Fac Low Low Zio Used RIF Installer . | . . . . . . . . . . Robots Hacked . | . . . . . . . . . . Non-combat . | . . . . . . . . . . Combat . | . . . . . . . . . . Robot Hacks Applied . | . . . . . . . . . . Relay Couplers Released . | . . . . . . . . . . Fabnet Peak Effective % . | . . . . . . . . . . Robots Rewired . | . . . . . . . . . . Allies Hacked . | . . . . . . . . . . Hacks Repelled . | . . . . . . . . . . Allies | -11 -10 -10 -9 -9 -8 -7 -7 -7 -7 -------- Run | Yrd Mat Min Mat Min Mat Fac Low Low Zio Total Allies 5 | . . 3 . . . . . . 2 Largest Group 3 | . . 3 3 3 2 . . . 2 Highest-Rated Group 48 | . . 40 40 40 32 . . . 48 Highest-Rated Ally 28 | . . 16 16 16 16 . . . 28 Total Orders 9 | . . . . . . 9 . . . EXPLORE 3 | . . . . . . 3 . . . RETURN 6 | . . . . . . 6 . . . Ally Attacks 58 | . . . 27 22 9 . . . . Total Damage 631 | . . . 280 267 84 . . . . Kills 14 | . . . 5 7 2 . . . . Allies Corrupted . | . . . . . . . . . . Allies Melted . | . . . . . . . . . . Intel | -11 -10 -10 -9 -9 -8 -7 -7 -7 -7 ------- Run | Yrd Mat Min Mat Min Mat Fac Low Low Zio Robot Analysis Total 4 | . 1 . 2 . 1 . . . . Derelict Logs Recovered 7 | . . 1 . 2 . . 1 2 1 Drone Launches 10 | . . . . . . 10 . . . Drone Recoveries 7 | . . . . . . 7 . . . Exploration | -11 -10 -10 -9 -9 -8 -7 -7 -7 -7 ------------- Run | Yrd Mat Min Mat Min Mat Fac Low Low Zio Turns Passed 6397 | 2 743 813 285 518 630 736 453 987 1230 Spaces Moved 3576 | 2 363 453 167 312 338 435 292 537 677 Core 1 | . . . . . . . . . 1 Treads . | . . . . . . . . . . Legs 195 | 2 193 . . . . . . . . Wheels 3380 | . 170 453 167 312 338 435 292 537 676 Hover . | . . . . . . . . . . Flight . | . . . . . . . . . . Fastest Speed 108 | 120 120 155 155 155 108 125 125 140 145 Average Speed 146 | 120 161 155 155 155 132 125 139 150 147 Slowest Speed 1800 | 120 260 155 155 155 155 125 140 160 1800 Overloaded Moves . | . . . . . . . . . . Propulsion Burnouts . | . . . . . . . . . . Robots Hopped . | . . . . . . . . . . Cave-ins Triggered . | . . . . . . . . . . Exploration Rate (%) 48 | 2 47 81 28 72 38 20 51 68 79 Regions Visited 9 Branch Regions 5 Pre-discovered Areas 5 | . . 1 . 1 . . 1 1 1 Known Exits Taken 3 | . . . . . . 1 1 1 . Unknown Exits Taken 6 | 1 1 1 1 1 1 . . . . Scrap Searched 8 | . . 1 . 1 . . . 5 1 Spaces Dug 13 | . . . . . . . . . 13 Terrain Destroyed 69 | . . . . . 27 1 19 1 21 Melee 13 | . . . . . . . . . 13 Projectile 2 | . . . . . . 1 . 1 . AOE 54 | . . . . . 27 . 19 . 8 Terrain Rammed . | . . . . . . . . . . Walls Destroyed . | . . . . . . . . . . Machines Disabled . | . . . . . . . . . . Actions | -11 -10 -10 -9 -9 -8 -7 -7 -7 -7 --------- Run | Yrd Mat Min Mat Min Mat Fac Low Low Zio Total 4261 | 1 453 536 183 334 458 555 314 649 778 Wait 203 | . 20 50 2 1 19 48 6 57 . Move 3567 | 1 362 452 166 311 337 434 291 536 677 Hop . | . . . . . . . . . . Pick Up 72 | . 15 9 2 6 21 10 1 2 6 Fast Attach 11 | . 1 . . . 6 . . 2 2 Attach 32 | . 2 1 3 1 7 7 1 6 4 Detach 4 | . . . 1 . 1 1 . . 1 Swap 39 | . 5 . 1 . 10 9 5 6 3 Drop 52 | . 7 5 1 6 19 6 . 3 5 Fire 193 | . 41 19 7 9 37 32 10 37 1 Melee 78 | . . . . . . . . . 78 Ram 2 | . . . . . 1 . . . 1 Kick . | . . . . . . . . . . Crush . | . . . . . . . . . . Escape Stasis 8 | . . . . . . 8 . . . Rewire . | . . . . . . . . . . Trap . | . . . . . . . . . . Miscellaneous . | . . . . . . . . . . Route ------- -11/Scrapyard -10/Materials (discovered 2 exits: *Mat / *Min) -10/Mines (discovered 2 exits: *Mat x2) -9/Materials -9/Mines -8/Materials -7/Factory (discovered 2 exits: Sto / *Low) -7/Lower Caves -7/Lower Caves (discovered 2 exits: *Fac / *Zio) -7/Zion History --------- Turn | Location | Event 1 | -11/Scrapyard | Discovered new exit (range 1) 3 | -11/Scrapyard | Entered Materials 317 | -10/Materials | Build established: Mutant 476 | -10/Materials | Discovered new exit (range 12) 703 | -10/Materials | Discovered new exit (range 15) 746 | -10/Materials | Entered Mines 748 | -10/Mines | Discovered new exit (range 16) 984 | -10/Mines | Core integrity fell below 50% 1003 | -10/Mines | Learned location of Zion (-7) 1014 | -10/Mines | Met a Derelict shopkeep closing up shop 1413 | -10/Mines | Discovered new exit (range 7) 1419 | -10/Mines | Received a Rocket Launcher from a helpful Derelict 1501 | -10/Mines | Assisted by bots powering up and referring to "LRC-V3" 1559 | -10/Mines | Entered Materials 1559 | -9/Materials | Accompanied by 3 allies 1559 | -9/Materials | Evolved 2 slots: Propulsion x1, Utility x1 1813 | -9/Materials | Discovered new exit (range 10) 1844 | -9/Materials | Entered Mines 1844 | -9/Mines | Accompanied by 3 allies 1867 | -9/Mines | Met a Derelict bent on vengeance 1993 | -9/Mines | Learned location of Recycling (-7) 2152 | -9/Mines | Found the Drone Emporium 2161 | -9/Mines | Found Prototype Device 2338 | -9/Mines | Assembled infested the area 2355 | -9/Mines | Discovered new exit (range 6) 2362 | -9/Mines | Entered Materials 2362 | -8/Materials | Accompanied by 2 allies 2362 | -8/Materials | Evolved 2 slots: Propulsion x1, Utility x1 2743 | -8/Materials | Lost 6 parts (4n1u1w) 2899 | -8/Materials | Discovered new exit (range 8) 2992 | -8/Materials | Entered Factory 2992 | -7/Factory | Evolved 2 slots: Utility x1, Weapon x1 2993 | -7/Factory | Identified exit to Storage 3220 | -7/Factory | Hacking Suite fried by hacking feedback 3283 | -7/Factory | Build established: Gunner 3597 | -7/Factory | Identified Sensor Drone Bay 3653 | -7/Factory | Discovered new exit (range 12) 3666 | -7/Factory | Identified exit to Lower Caves 3728 | -7/Factory | Entered Lower Caves 3728 | -7/Lower Caves | Spotted B-75 Beast 3827 | -7/Lower Caves | Attracted the attention of an 0b10 checkpoint 4142 | -7/Lower Caves | Discovered new exit (range 9) 4180 | -7/Lower Caves | Identified exit to Lower Caves 4181 | -7/Lower Caves | Entered another Lower Caves area 4209 | -7/Lower Caves | Discovered new exit (range 7) 4224 | -7/Lower Caves | Identified exit to Factory 4532 | -7/Lower Caves | Learned Factory security intel 4634 | -7/Lower Caves | Attracted the attention of an 0b10 outpost 4699 | -7/Lower Caves | Lost 3 parts (1n1u1w) 4700 | -7/Lower Caves | Destroyed 7 combat bots 5030 | -7/Lower Caves | Learned location of Extension (-4) 5121 | -7/Lower Caves | Discovered new exit (range 12) 5145 | -7/Lower Caves | Identified exit to Zion 5168 | -7/Lower Caves | Entered Zion 5234 | -7/Zion | System corruption cleaned by Quarantine Array 5549 | -7/Zion | Learned location of Warlord (-5) 5731 | -7/Zion | Learned location of 2 exits from Factory 5872 | -7/Zion | Gained Derelict followers 5959 | -7/Zion | Found Prototype Special Weapon 5963 | -7/Zion | Found Prototype Special Weapon 5965 | -7/Zion | Found Prototype Special Weapon 5968 | -7/Zion | Found Prototype Special Weapon 5977 | -7/Zion | Identified RU-N14's Throwing Claymores (x4) 6011 | -7/Zion | Learned Factory emergency access door positions 6285 | -7/Zion | Warned about damaging Zion machinery 6333 | -7/Zion | Caused signficant damage to Zion machinery 6333 | -7/Zion | Attacked by Zionites 6347 | -7/Zion | Core integrity fell below 50% 6389 | -7/Zion | Core integrity fell below 20% 6398 | -7/Zion | Destroyed by OR-ZW1(z) with Makeshift Spear Last Messages --------------- 06361_ Arm. Huge Wheel broken. 06361_ Destabilizing: Short circuit. 06364_ Knocked back. 06365_ Imp. Treads destroyed. 06365_ Knocked back. 06365_ Critical hit (Destroy). 06365_ Flak Gun destroyed. 06371_ Lgt. Nuclear Core destroyed. 06373_ Knocked back. 06377_ System corrupted: Component data lost. 06378_ FJ-3ZV(z) destroyed. 06378_ CP-8MM(z) destroyed. 06378_ Destroyed Battle Cannon. 06378_ Deep Containment System disabled. 06382_ Dropped Arm. Treads. 06386_ The unstable cave ceiling collapses. 06393_ RU-N14's Throwing Claymores severed. OR-ZW1(z) bursts out of the Twisted Machinery. 06395_ OR-ZW1(z) pulls a Mak. Spear out of the Twisted Machinery. 06398_ Critical hit (Impale). Map ----- +----------------------------------------------------+ | ?????????????????????????????????????????????????? | | ?????????????????????????????????########????????? | | ?????????????????????????????????#"#""#"#????????? | | ?????????????????????????????????#" " ""#????????? | | ?????????????????????????????????#" "#????????? | | ?????????????????????????????????#" "#????????? | | ??????????????????????????????????# #?????????? | | ?????????????????????????????????#"" ""#????????? | | ?????????????????????????????????# ##???????# | | ?????????????????????????????##?## ####????# | | ????????????????????????????##"##"""## "##???? | | ?????????????????????????????"""""""#"" #"##??? | | ??????????????????????????????#" """"" # "##?# | | ??????????????????????????????#" """" "### | | ??????????????????????????????#" """"" ##"" | | ???????????????????????????####"" """"" "" | | ?????????????????????##????#"""""" """" " | | ?????????????????????# ????#"""""" | | ?????????????######### ##?##"" | | ?????????????#"# # "## ?#""" | | ????????????## # # # # #"" | | ????????????# ######### %=###"" "" "" | | ?????????#### #???? " =="#"" "" """" | | ????????##" ##?????? * "##"" """"" | | ???????## ###???????##M% z"""""" ""#"" | | ???????#"#"#?????????" =@z """" | | ???????# #"#?????????" |l " | | ???????# ###???####### " "" """"" | | ???????# #?????# # """"""" "#""" | | ???????# #?????# #####""""""""" """"" | | ???????###?##### #???##"###""""" """##" | | ???????# ### ##????###?###"#"""" """""""" " | | ???????## "#""##???????????###"""" ""###"#" " | | ????????########??????????????##""" "#####"" " | | ??????????????????????????????##""" ""#""""" " | | ??????????????????????????????#""" """"""" " | | ?????????????????????????#######" "" | | ?????????????????????????" "# " | | ?????????????????????????" /"# "" | | ?????????????????????????"]/" "" | | ?????????????????????????#" # #" """"" | | ?????????????????????????#""""# """"" | | ?????????????????????????##""#" "##"" " | | ??????????????????????????####"" """"" " | | ???????????????????????????""""" " | | ??????????????????????????#"""" " " | | ??????????????????????????#"" " " | | ??????????????????????????#"" "" "" | | ??????????????????????????"" ##"" "" | | ??????????????????????????""" #"""" " | +----------------------------------------------------+ Best States ------------- Heat Dissipation 34 Energy Generation 14 Energy Capacity 265 Matter Stores 300 Matter Capacity 300 Sight Range 18 Robot Scan Range 15 Terrain Scan Density 10 Armor Coverage 225 Resistance: KI 30 Evasion (%) 55 Targeting Accuracy 11 Matter Filtering 30 Kinecelleration 30 Offensive Hacking 10 Item Schematics ----------------- None Robot Schematics ------------------ None Fabricated ------------ Nothing Alien Tech Used ----------------- None Achievements -------------- None Challenges ------------ None Game ------ Seed SuperchargedLongswordCutter Manual? 0 Play Time 01:04:50 Cumulative 157.7 hours Start 2024.03.09 @ 15:17:55 End 2024.03.09 @ 16:29:30 Sessions 3 Manual Loads 0 Difficulty Rogue Special Mode None Game No. 238 Rogue 238 Adventurer 0 Explorer 0 Win Type - Total 0 Types 0/0/0/0/0/0/0/0/0 Lore% 46 Gallery% 57 Achievement% 44 Wizard Run 0 Options --------- Layout 0 ASCII 0 Keyboard 0 Movement Mouse Keybinds 1 Fullscreen 2 Font 18/SmallcapsGlow Map View 76x50 Zoom Use 5% Tactical HUD 1 Map Filters SATURATION(75) Filters LOW_CONTRAST(23,23,23) Steam 1 RUN: 6bb39205-80af-49f4-a078-bd17bf176a6d